bitfinex-derivatives/quotes_ETHF0:USTF0_20210705
["timestamp","ask_amount","ask_price","bid_price","bid_amount"]
[1625479969348,7.21594,2289.7,2289.6,16.734089]
[1625479971154,12.21594,2289.7,2289.6,16.734089]
[1625479971253,12.21594,2289.7,2289.4,1.24715499]
[1625479971658,12.21594,2289.7,2288.8,1.24907076]
[1625479972156,12.21594,2289.7,2288.9,1.25021443]
[1625479972256,12.21594,2289.7,2288.9,17.01344343]
[1625479972356,7.21594,2289.7,2288.9,17.01344343]
[1625479972459,5.0,2289.6,2288.9,15.763229]
[1625479972865,5.0,2289.6,2288.7,1.24979653]
[1625479973321,4.41054,2288.8,2288.7,1.24979653]
[1625479973422,7.93424,2288.8,2288.7,1.24979653]
[1625479973873,7.93424,2288.8,2288.7,2.24979653]
[1625479973969,7.93424,2288.8,2288.7,1.0]
[1625479974075,7.93424,2288.8,2288.2,16.77067]
[1625479974373,7.93424,2288.8,2288.7,1.2488853]
[1625479974470,7.93424,2288.8,2288.7,2.2488853]
[1625479974773,7.93424,2288.8,2288.7,1.2488853]
[1625479975022,7.93424,2288.8,2288.6,1.24917857]
[1625479975322,7.93424,2288.8,2288.6,2.24917857]
[1625479975422,7.93424,2288.8,2288.6,1.24917857]
[1625479975822,7.93424,2288.8,2288.7,15.857297]
[1625479979532,7.93424,2288.8,2288.7,16.857297]
[1625479980485,4.41054,2288.8,2288.7,16.857297]
[1625479980684,54.51654553,2290.2,2288.7,19.772197]
[1625479980785,1.28774553,2290.2,2288.7,19.772197]
[1625479980883,1.28764318,2290.3,2288.7,19.772197]
[1625479981333,16.22600046,2290.4,2288.7,19.772197]
[1625479981334,2.20527,2289.9,2289.8,2.20527]
[1625479981532,5.0,2290.3,2289.8,2.20527]
[1625479981733,5.0,2290.3,2289.9,15.973015]
[1625479981835,1.28746068,2290.7,2289.9,15.973015]
[1625479981985,1.28746068,2290.7,2289.8,18.114561]
[1625479982085,1.28746068,2290.7,2289.8,2.20527]
[1625479982337,1.28746068,2290.7,2289.9,15.906198]
[1625479982538,1.28746068,2290.7,2289.8,2.20527]
[1625479982987,1.28741947,2290.6,2289.8,2.20527]
[1625479983339,4.41054,2289.9,2289.8,2.20527]
[1625479984807,2.20527,2289.9,2289.8,2.20527]
[1625479985561,2.20527,2289.9,2289.8,3.20527]
[1625479988066,4.67117,2290.3,2289.8,3.20527]
[1625479988166,2.20527,2290.3,2289.8,3.20527]
[1625479989470,2.20527,2290.3,2290.1,2.20527]
[1625479991577,2.20527,2290.3,2290.1,3.20527]
[1625479991781,2.20527,2290.3,2290.1,2.20527]
[1625479994642,2.20527,2290.3,2290.1,3.20527]
[1625479996406,5.53267,2290.3,2290.1,3.20527]
[1625480000111,5.53267,2290.3,2290.1,2.20527]
[1625480002167,5.53267,2290.3,2289.8,3.20527]
[1625480002168,11.39407,2290.3,2288.8,19.56565743]
[1625480002270,11.39407,2290.3,2288.8,18.3226]
[1625480002368,11.39407,2290.3,2288.8,13.5636]
[1625480002718,48.4376,2289.1,2288.8,13.5636]
[1625480002819,50.7549,2289.1,2288.8,13.5636]
[1625480003071,50.7549,2289.1,2288.3,1.24486638]
[1625480003279,50.7549,2289.1,2288.2,1.24471054]
[1625480003372,50.7549,2289.1,2288.2,2.24471054]
[1625480003472,50.7549,2289.1,2289.0,2.20527]
[1625480010972,55.7549,2289.1,2289.0,2.20527]
[1625480011075,50.7549,2289.1,2289.0,2.20527]
[1625480011572,50.7549,2289.1,2288.9,2.20527]
[1625480012879,55.7549,2289.1,2288.9,2.20527]
[1625480012979,50.7549,2289.1,2288.9,2.20527]
[1625480013585,2.20527,2289.0,2288.6,2.20527]
[1625480013687,5.0,2288.9,2288.6,2.20527]
[1625480013888,2.20527,2289.0,2288.6,2.20527]
[1625480014092,2.20527,2289.0,2288.7,1.0]
[1625480014290,2.20527,2289.0,2288.6,2.20527]
[1625480015195,2.20527,2289.0,2288.6,7e-05]
[1625480015296,1.0,2288.9,2287.2,1.67924056]
[1625480015397,1.0,2288.9,2287.0,1.24673876]
[1625480015600,6.88234,2287.1,2287.0,1.24673876]
[1625480015698,7.88234,2287.1,2286.6,2.20527]
[1625480015799,49.3928,2286.9,2286.6,2.20527]
[1625480016503,1.0,2286.8,2286.6,2.20527]
[1625480016856,49.3928,2286.9,2286.6,2.20527]
[1625480017306,50.3928,2286.9,2286.6,2.20527]
[1625480017554,2.20527,2286.7,2286.6,2.20527]
[1625480018056,1.0,2286.9,2286.6,2.20527]
[1625480018157,2.20527,2287.1,2286.6,2.20527]
[1625480018265,2.20527,2287.1,2286.6,5.22847]
[1625480018612,2.20527,2287.1,2286.6,21.013114]
[1625480019520,2.20527,2287.1,2286.6,59.922114]
[1625480019622,2.20527,2287.6,2287.0,2.20527]
[1625480020173,2.20527,2287.6,2287.1,15.958177]
[1625480020272,1.0,2287.5,2287.1,15.958177]
[1625480020574,2.20527,2287.6,2287.1,15.958177]
[1625480020674,2.20527,2287.6,2287.1,18.714677]
[1625480021275,1.0,2287.5,2287.1,18.714677]
[1625480021575,1.0,2287.5,2287.4,2.20527]
[1625480022382,4.41054,2287.6,2287.4,2.20527]
[1625480022729,2.20527,2287.6,2287.4,2.20527]
[1625480023031,3.20527,2287.6,2287.4,2.20527]
[1625480023635,3.20527,2287.6,2287.4,4.41054]
[1625480025288,5.0,2287.5,2287.1,2.7565]
[1625480025386,1.0,2287.4,2287.1,2.7565]
[1625480025486,1.0,2287.4,2286.6,3.0232]
[1625480025588,2.20527,2287.3,2287.0,2.20527]
[1625480025688,39.2052,2287.1,2287.0,2.20527]
[1625480025799,40.2052,2287.1,2287.0,2.20527]
[1625480031349,45.2052,2287.1,2287.0,2.20527]
[1625480032102,40.2052,2287.1,2287.0,2.20527]
[1625480032203,45.2052,2287.1,2287.0,2.20527]
[1625480032352,40.2052,2287.1,2287.0,2.20527]
[1625480032453,40.2052,2287.1,2286.2,13.9884]
[1625480032553,40.2052,2287.1,2284.9,14.649]
[1625480032654,40.2052,2287.1,2284.8,2.48740112]
[1625480033055,40.2052,2287.1,2284.7,14.2963]
[1625480033253,42.7694,2285.7,2284.9,16.002302]
[1625480033460,42.7694,2285.7,2284.8,15.748625]
[1625480033761,42.7694,2285.7,2285.6,2.20527]
[1625480033861,1.0,2286.9,2285.6,2.20527]
[1625480034265,1.0,2286.9,2285.6,18.16024]
[1625480034468,1.0,2286.9,2285.6,61.72384]
[1625480035721,2.20527,2286.3,2286.2,2.20527]
[1625480036025,2.20527,2286.3,2286.2,18.208224]
[1625480036222,2.20527,2286.3,2286.2,16.002954]
[1625480036473,2.20527,2286.3,2285.7,15.98968]
[1625480037326,3.20527,2286.3,2285.7,15.98968]
[1625480037731,3.20527,2286.3,2285.9,2.20527]
[1625480037827,2.20527,2286.3,2285.9,2.20527]
[1625480038029,2.20527,2286.3,2286.0,15.854937]
[1625480038227,3.20527,2286.3,2286.0,15.854937]
[1625480038327,2.20527,2286.3,2286.0,15.854937]
[1625480039797,2.20527,2286.1,2286.0,15.854937]
[1625480042747,2.20527,2286.1,2285.9,2.20527]
[1625480046152,2.20527,2286.1,2285.6,2.20527]
[1625480046251,3.20527,2286.1,2285.6,2.20527]
[1625480047762,2.20527,2285.7,2285.6,2.20527]
[1625480052525,4.42447,2285.7,2285.6,2.20527]
[1625480067624,2.20527,2285.7,2285.6,2.20527]
[1625480067928,2.20527,2285.7,2285.6,18.07091]
[1625480069934,2.20527,2286.1,2285.6,18.07091]
[1625480070038,1.0,2287.0,2285.6,21.61981]
[1625480070537,50.1722,2288.1,2285.6,21.61981]
[1625480070637,1.0,2288.0,2286.6,48.6385]
[1625480070737,1.0,2288.0,2286.6,51.6892]
[1625480071038,1.0,2288.0,2286.7,15.813959]
[1625480071538,1.0,2288.0,2286.7,19.018559]
[1625480071936,2.20527,2287.7,2287.5,2.20527]
[1625480072035,1.0,2287.6,2287.5,2.20527]
[1625480073389,2.20527,2287.7,2287.5,2.20527]
[1625480073701,3.20527,2287.7,2287.5,2.20527]
[1625480074008,4.85777,2287.6,2287.5,2.20527]
[1625480074340,5.85777,2287.6,2287.5,2.20527]
[1625480074539,5.85777,2287.6,2286.6,48.6385]
[1625480075089,5.85777,2287.6,2286.6,53.3975]
[1625480075544,5.85777,2287.6,2286.7,15.913131]
[1625480075948,5.85777,2287.6,2287.3,2.20527]
[1625480077450,5.85777,2287.6,2286.6,53.3975]
[1625480077550,5.85777,2287.6,2286.6,4.759]
[1625480077650,5.85777,2287.6,2286.1,1.15]
[1625480078001,4.41054,2286.2,2286.1,1.15]
[1625480078101,7.12304,2286.2,2286.0,2.20527]
[1625480078305,7.12304,2286.2,2286.1,16.008849]
[1625480082166,4.41054,2286.2,2286.1,16.008849]
[1625480083070,38.5238,2286.7,2286.1,16.008849]
[1625480083935,39.5238,2286.7,2286.1,16.008849]
[1625480084036,2.20527,2286.2,2286.1,16.008849]
[1625480087243,2.20527,2286.2,2286.1,16.895249]
[1625480087343,2.20527,2286.2,2286.1,16.008849]
[1625480087746,0.8655,2288.4,2286.1,16.008849]
[1625480087846,1.0,2287.4,2286.1,16.008849]
[1625480088046,2.20527,2287.3,2287.2,2.20527]
[1625480088146,3.20527,2287.3,2286.9,2.20527]
[1625480088847,3.20527,2287.3,2287.0,15.736823]
[1625480090048,2.20527,2287.1,2287.0,15.736823]
[1625480090148,5.68237,2287.1,2287.0,15.736823]
[1625480090500,5.68237,2287.1,2286.9,2.20527]
[1625480093111,4.68237,2287.1,2287.0,15.749954]
[1625480094066,4.68237,2287.1,2287.0,17.955224]
[1625480095120,2.4771,2287.1,2287.0,17.955224]
[1625480095222,3.20527,2287.3,2287.0,17.955224]
[1625480096070,5.41054,2287.3,2287.0,17.955224]
[1625480097870,5.41054,2287.3,2287.0,2.20527]
[1625480098672,4.41054,2287.3,2287.0,2.20527]
[1625480099024,4.41054,2287.3,2287.1,15.978515]
[1625480101242,1.0,2287.2,2287.1,15.978515]
[1625480103950,2.20527,2287.3,2287.1,15.978515]
[1625480104049,1.0,2287.4,2287.1,15.978515]
[1625480104149,1.0,2287.4,2287.3,2.20527]
[1625480104700,1.0,2287.4,2287.3,17.997485]
[1625480111569,2.20527,2287.5,2287.3,17.997485]
[1625480113018,1.0,2287.4,2287.3,17.997485]
[1625480113120,3.6975,2287.4,2287.3,17.997485]
[1625480116178,2.6975,2287.4,2287.3,17.997485]
[1625480116378,2.20527,2287.8,2287.3,17.997485]
[1625480116480,3.20527,2287.8,2287.3,17.997485]
[1625480118346,3.20527,2287.8,2287.7,2.20527]
[1625480118484,1.0,2287.8,2287.7,2.20527]
[1625480118791,1.0,2287.8,2287.7,17.994315]
[1625480121696,1.0,2288.1,2287.7,17.994315]
[1625480122348,1.0,2288.1,2288.0,2.20527]
[1625480123499,1.0,2288.1,2288.0,52.51107]
[1625480123703,2.57894888,2288.8,2288.0,52.51107]
[1625480123802,1.0,2288.4,2288.0,52.51107]
[1625480124053,1.0,2288.4,2288.1,15.798621]
[1625480124353,3.20527,2288.4,2288.3,2.20527]
[1625480127057,3.20527,2288.4,2288.3,17.969622]
[1625480128761,2.20527,2288.6,2288.3,17.969622]
[1625480129018,3.20527,2288.6,2288.3,17.969622]
[1625480130414,3.20527,2288.6,2288.5,2.20527]
[1625480132319,3.20527,2288.6,2288.5,18.056931]
[1625480132417,1.0,2288.6,2288.5,18.056931]
[1625480132515,3.20527,2289.0,2288.5,18.056931]
[1625480132615,2.20527,2289.0,2288.5,18.056931]
[1625480133017,2.57488881,2289.7,2288.5,18.056931]
[1625480133219,2.57467262,2289.9,2288.5,18.056931]
[1625480133415,2.57467262,2289.9,2289.5,37.2575]
[1625480133616,1.0,2289.8,2289.5,37.2575]
[1625480133819,1.0,2289.8,2289.6,15.967291]
[1625480134471,4.41054,2289.7,2289.6,15.967291]
[1625480134580,5.41054,2289.7,2289.6,15.967291]
[1625480139827,4.41054,2289.7,2289.6,15.967291]
[1625480140178,1.0,2290.4,2289.6,15.967291]
[1625480140427,2.20527,2290.2,2290.1,2.20527]
[1625480140529,3.20527,2290.2,2290.1,2.20527]
[1625480140778,3.20527,2290.2,2290.1,18.169815]
[1625480142429,4.41054,2290.2,2290.1,18.169815]
[1625480142629,5.41054,2290.2,2290.1,18.169815]
[1625480143636,4.41054,2290.2,2290.1,18.169815]
[1625480144431,5.41054,2290.2,2290.1,18.169815]
[1625480146148,4.41054,2290.2,2290.1,18.169815]
[1625480146498,5.41054,2290.2,2290.1,18.169815]
[1625480146997,5.41054,2290.2,2290.1,55.308715]
[1625480147247,5.41054,2290.2,2290.1,39.34417]
[1625480147348,5.41054,2290.2,2289.5,39.46277]
[1625480148052,5.41054,2290.2,2289.6,15.822149]
[1625480148450,3.20527,2290.2,2289.9,2.20527]
[1625480148803,3.20527,2290.2,2290.0,15.886018]
[1625480150454,2.20527,2290.1,2289.9,2.20527]
[1625480150555,4.45347,2290.1,2289.9,2.20527]
[1625480151907,5.32577,2290.1,2289.9,2.20527]
[1625480152009,4.45347,2290.1,2289.9,2.20527]
[1625480152110,4.45347,2290.1,2290.0,15.738739]
[1625480152211,2.20527,2290.1,2290.0,15.738739]
[1625480157421,3.20527,2290.1,2290.0,15.738739]
[1625480157521,6.50797,2290.1,2290.0,15.738739]
[1625480157621,6.50797,2290.1,2289.9,4.41054]
[1625480170067,5.50797,2290.1,2289.9,4.41054]
[1625480170270,5.50797,2290.1,2290.0,15.860453]
[1625480170619,6.50797,2290.1,2290.0,15.860453]
[1625480170719,6.50797,2290.1,2289.9,4.41054]
[1625480171121,5.50797,2290.1,2289.9,4.41054]
[1625480176194,6.50797,2290.1,2289.9,4.41054]
[1625480176491,5.50797,2290.1,2289.9,4.41054]
[1625480176592,2.20527,2290.1,2289.9,4.41054]
[1625480176691,17.16584884,2291.8,2289.9,4.41054]
[1625480176792,2.8483,2291.3,2289.9,4.41054]
[1625480176890,17.16584884,2291.8,2290.0,15.765784]
[1625480176994,16.39731556,2291.8,2290.0,15.765784]
[1625480177443,13.8364,2291.8,2290.0,15.765784]
[1625480177646,1.0,2291.7,2290.0,15.765784]
[1625480178244,1.0,2291.7,2291.0,51.2857]
[1625480178593,2.20527,2291.5,2291.4,2.20527]
[1625480178693,3.20527,2291.5,2291.4,2.20527]
[1625480179245,3.20527,2291.5,2291.1,2.20527]
[1625480179346,3.20527,2291.5,2289.6,13.775]
[1625480179998,3.20527,2291.5,2289.7,15.86818]
[1625480180610,2.20527,2290.6,2290.5,2.20527]
[1625480180709,3.20527,2290.6,2290.5,2.20527]
[1625480180809,3.20527,2290.6,2290.3,45.01957]
[1625480181260,2.20527,2290.6,2290.3,45.01957]
[1625480181459,2.20527,2290.6,2290.4,15.8825]
[1625480182661,2.20527,2290.5,2290.4,15.8825]
[1625480186168,2.20527,2290.6,2290.4,15.8825]
[1625480187168,3.4282,2291.1,2290.4,15.8825]
[1625480187268,1.0,2291.7,2290.4,18.4917]
[1625480187819,1.0,2291.7,2291.6,49.0828]
[1625480188423,1.0,2291.7,2291.5,3.5265]
[1625480188722,4.41054,2291.6,2291.5,3.5265]
[1625480188821,5.41054,2291.6,2291.5,3.5265]
[1625480189726,5.41054,2291.6,2291.4,2.20527]
[1625480193539,4.41054,2291.6,2291.4,2.20527]
[1625480193637,2.55821006,2292.9,2291.4,2.20527]
[1625480193737,2.55821006,2292.9,2291.4,4.60737]
[1625480193939,2.55782882,2293.2,2291.4,4.60737]
[1625480194037,2.55782882,2293.2,2291.5,15.773113]
[1625480194238,2.55782882,2293.2,2292.4,46.8871]
[1625480194638,1.0,2293.1,2292.4,46.8871]
[1625480194739,4.41054,2292.5,2292.4,46.8871]
[1625480194840,5.41054,2292.5,2292.4,46.8871]
[1625480195791,4.41054,2292.5,2292.4,46.8871]
[1625480196093,5.41054,2292.5,2292.4,46.8871]
[1625480196795,5.41054,2292.5,2292.1,2.20527]
[1625480197095,5.41054,2292.5,2291.5,13.9197]
[1625480197193,8.36924,2292.5,2291.5,13.9197]
[1625480197693,55.32404,2292.5,2291.5,13.9197]
[1625480198697,2.20527,2291.6,2291.5,13.9197]
[1625480198794,4.91347,2291.6,2291.5,13.9197]
[1625480199003,5.91347,2291.6,2291.5,13.9197]
[1625480199103,5.91347,2291.6,2291.3,2.20527]
[1625480199204,4.91347,2291.6,2291.3,2.20527]
[1625480199304,2.7082,2291.6,2291.3,2.20527]
[1625480199504,2.7082,2291.6,2291.4,15.737228]
[1625480200566,1.0,2291.5,2291.4,15.737228]
[1625480200666,1.0,2291.5,2288.6,3.19048212]
[1625480200765,5.41054,2291.5,2290.6,2.20527]
[1625480201315,5.41054,2291.5,2290.7,15.928452]
[1625480202721,2.20527,2291.0,2290.9,2.20527]
[1625480203071,2.20527,2291.0,2290.9,17.993194]
[1625480203172,4.37007,2291.0,2290.9,17.993194]
[1625480203923,5.37007,2291.0,2290.9,17.993194]
[1625480204122,5.37007,2291.0,2290.9,2.20527]
[1625480204623,5.37007,2291.0,2289.3,14.1207]
[1625480204724,2.20527,2290.4,2290.3,45.01957]
[1625480205383,2.20527,2290.4,2290.3,60.901716]
[1625480206635,3.1648,2291.0,2290.3,60.901716]
[1625480206737,1.0,2291.0,2290.9,2.20527]
[1625480207136,1.0,2291.0,2290.9,18.075127]
[1625480207536,2.20527,2291.1,2290.9,18.075127]
[1625480208639,1.0,2291.0,2290.9,18.075127]
[1625480208739,3.20527,2291.0,2290.9,18.075127]
[1625480210999,2.20527,2291.0,2290.9,18.075127]
[1625480212056,3.20527,2291.0,2290.9,18.075127]
[1625480212653,2.20527,2291.0,2290.9,18.075127]
[1625480212855,3.20527,2291.0,2290.9,18.075127]
[1625480215162,5.64927,2291.0,2290.9,18.075127]
[1625480215916,5.64927,2291.0,2290.9,15.869857]
[1625480216016,5.64927,2291.0,2290.5,2.20527]
[1625480216315,6.51277,2291.0,2290.5,2.20527]
[1625480216415,5.64927,2291.0,2290.5,2.20527]
[1625480216617,5.64927,2291.0,2290.6,15.960856]
[1625480216717,10.64927,2291.0,2290.6,15.960856]
[1625480216817,2.20527,2290.7,2289.9,2.20527]
[1625480216917,1.0,2290.6,2289.9,2.20527]
[1625480217521,51.3894,2290.0,2289.9,2.20527]
[1625480217618,55.3253,2290.0,2289.9,2.20527]
[1625480218821,59.73584,2290.0,2289.9,2.20527]
[1625480221427,59.73584,2290.0,2288.5,13.5952]
[1625480222031,59.73584,2290.0,2288.6,15.834673]
[1625480222834,2.20527,2289.1,2289.0,2.20527]
[1625480223132,2.20527,2289.1,2289.0,18.147603]
[1625480224636,42.41637,2289.1,2289.0,18.147603]
[1625480224837,44.62164,2289.1,2289.0,18.147603]
[1625480225436,45.62164,2289.1,2289.0,18.147603]
[1625480226087,44.62164,2289.1,2289.0,18.147603]
[1625480226287,45.62164,2289.1,2289.0,18.147603]
[1625480226947,45.62164,2289.1,2289.0,2.20527]
[1625480227244,45.62164,2289.1,2288.7,2.20527]
[1625480227343,45.62164,2289.1,2287.9,1.73473193]
[1625480227493,50.62164,2289.1,2287.9,1.73473193]
[1625480227994,50.62164,2289.1,2287.7,14.6886]
[1625480228095,45.62164,2289.1,2287.7,14.6886]
[1625480228843,41.2111,2289.1,2287.8,15.758717]
[1625480229396,1.0,2289.1,2287.8,15.758717]
[1625480230848,2.20527,2288.2,2288.1,2.20527]
[1625480231450,2.20527,2288.2,2288.1,17.961828]
[1625480232951,4.41054,2288.2,2288.1,17.961828]
[1625480234302,5.41054,2288.2,2288.1,17.961828]
[1625480234704,4.41054,2288.2,2288.1,17.961828]
[1625480236967,5.41054,2288.2,2288.1,17.961828]
[1625480238925,5.41054,2288.2,2288.1,15.756558]
[1625480239025,8.37904,2288.2,2287.8,2.20527]
[1625480239676,8.37904,2288.2,2287.9,15.794427]
[1625480240027,8.37904,2288.2,2287.8,2.20527]
[1625480240830,8.37904,2288.2,2287.5,2.20527]
[1625480241032,4.41054,2287.6,2287.5,2.20527]
[1625480241130,8.42164,2287.6,2287.5,2.20527]
[1625480241682,8.42164,2287.6,2286.8,14.32]
[1625480242283,8.42164,2287.6,2286.9,15.864018]
[1625480242987,6.21637,2287.6,2287.2,2.20527]
[1625480243392,6.21637,2287.6,2287.3,15.793457]
[1625480243492,3.20527,2287.6,2287.3,15.793457]
[1625480245005,2.20527,2287.4,2287.3,15.793457]
[1625480245111,3.20527,2287.4,2287.3,15.793457]
[1625480249929,1.0,2287.4,2287.3,15.793457]
[1625480250997,5.41054,2287.4,2287.3,15.793457]
[1625480252348,4.41054,2287.4,2287.3,15.793457]
[1625480252550,5.41054,2287.4,2287.3,15.793457]
[1625480253802,1.0,2287.4,2287.3,15.793457]
[1625480254706,43.9874,2287.4,2287.3,15.793457]
[1625480255056,48.39794,2287.4,2287.3,15.793457]
[1625480260782,47.39794,2287.4,2287.3,15.793457]
[1625480260880,4.41054,2287.4,2287.3,15.793457]
[1625480261081,1.0,2288.2,2287.3,15.793457]
[1625480261181,1.0,2288.2,2287.3,18.428557]
[1625480261430,1.0,2288.2,2287.3,2.6351]
[1625480261530,4.41054,2287.4,2287.3,2.6351]
[1625480261632,5.41054,2287.4,2287.3,2.6351]
[1625480261931,5.41054,2287.4,2287.3,18.521975]
[1625480262230,4.41054,2287.4,2287.3,18.521975]
[1625480262431,2.20527,2287.4,2287.3,18.521975]
[1625480262531,3.5149499,2289.9,2287.3,18.521975]
[1625480262632,51.3894,2290.0,2287.3,18.521975]
[1625480262732,47.4732,2289.2,2287.3,18.521975]
[1625480262834,42.4732,2289.2,2287.3,18.521975]
[1625480263332,43.4732,2289.2,2287.3,18.521975]
[1625480263432,1.0,2289.0,2287.3,18.521975]
[1625480263533,2.20527,2287.8,2287.7,2.20527]
[1625480265018,2.20527,2287.8,2287.3,2.6351]
[1625480265090,3.20527,2287.8,2286.8,14.32]
[1625480265442,1.0,2287.8,2286.8,14.32]
[1625480265742,1.0,2287.8,2286.9,15.984807]
[1625480265942,4.41054,2287.0,2286.9,15.984807]
[1625480284282,13.7453,2288.5,2286.9,15.984807]
[1625480284380,13.7453,2288.5,2286.9,18.519207]
[1625480284582,1.27866876,2289.9,2286.9,18.519207]
[1625480284790,41.6074,2289.2,2286.9,18.519207]
[1625480284989,1.0,2289.1,2286.9,18.519207]
[1625480285088,3.8347,2289.1,2286.9,23.278207]
[1625480285790,4.7114,2289.1,2286.9,23.278207]
[1625480286040,4.7114,2289.1,2287.6,2.20527]
[1625480286041,2.20527,2287.7,2287.6,2.20527]
[1625480286242,3.8347,2289.1,2287.6,2.20527]
[1625480286343,1.0,2289.1,2287.7,15.988437]
[1625480286644,1.0,2289.1,2287.6,4.59377]
[1625480286742,1.0,2289.1,2287.6,9.35277]
[1625480286944,1.0,2289.1,2288.5,39.8631]
[1625480288098,2.20527,2289.0,2288.9,2.20527]
[1625480288199,3.20527,2289.0,2288.9,2.20527]
[1625480288897,3.20527,2289.0,2288.9,17.99835]
[1625480290051,5.41054,2289.0,2288.9,2.20527]
[1625480292811,4.41054,2289.0,2288.9,2.20527]
[1625480293110,2.20527,2289.0,2288.9,18.122084]
[1625480293209,1.0,2289.4,2288.9,20.705184]
[1625480294112,1.0,2289.4,2289.3,2.20527]
[1625480294512,2.20527,2289.8,2289.3,2.20527]
[1625480294612,3.20527,2289.8,2289.3,2.20527]
[1625480295162,3.20527,2289.8,2289.4,15.720772]
[1625480295262,3.20527,2289.8,2289.4,18.383672]
[1625480296116,3.20527,2289.8,2289.7,2.20527]
[1625480299431,3.20527,2289.8,2288.5,39.8631]
[1625480299535,5.93357,2289.8,2288.5,39.8631]
[1625480300187,2.20527,2289.0,2288.9,2.20527]
[1625480301543,3.20527,2289.0,2288.9,2.20527]
[1625480302196,5.41054,2289.0,2288.9,2.20527]
[1625480302496,5.40454,2289.0,2288.9,2.20527]
[1625480304001,5.40454,2289.0,2287.6,59.435]
[1625480304099,8.67674,2289.0,2287.6,59.435]
[1625480304202,2.20527,2288.5,2288.3,2.20527]
[1625480304301,3.20527,2288.5,2288.3,2.20527]
[1625480306153,5.41054,2288.5,2288.3,2.20527]
[1625480307961,8.54924,2288.5,2288.3,2.20527]
[1625480308412,8.54924,2288.5,2287.6,59.435]
[1625480309013,8.54924,2288.5,2287.8,15.738746]
[1625480310177,6.34397,2288.5,2288.0,2.20527]
[1625480311029,3.20527,2288.5,2288.0,2.20527]
[1625480312190,2.20527,2288.1,2288.0,2.20527]
[1625480317650,3.20527,2288.1,2288.0,2.20527]
[1625480318201,6.34537,2288.1,2288.0,2.20527]
[1625480323063,5.34537,2288.1,2288.0,2.20527]
[1625480323414,2.20527,2288.1,2288.0,2.20527]
[1625480323516,2.20527,2288.1,2288.0,17.98573]
[1625480323614,1.0,2288.4,2288.0,17.98573]
[1625480324366,1.0,2288.4,2288.3,2.20527]
[1625480324766,1.0,2288.4,2288.3,18.017271]
[1625480330229,3.2872,2288.4,2288.0,2.20527]
[1625480330345,3.2872,2288.4,2287.7,14.79181268]
[1625480330427,4.77237,2287.8,2287.7,16.99708268]
[1625480330776,53.10057,2287.8,2287.7,3.45128268]
[1625480330876,53.10057,2287.8,2287.7,2.20527]
[1625480332346,4.77237,2287.8,2287.7,2.20527]
[1625480333602,43.71087,2287.8,2287.7,2.20527]
[1625480333904,44.71087,2287.8,2287.7,2.20527]
[1625480340470,5.77237,2287.8,2287.7,2.20527]
[1625480342736,3.20527,2287.8,2287.7,2.20527]
[1625480348462,2.20527,2287.8,2287.7,2.20527]
[1625480348564,2.20527,2287.8,2287.7,5.62777]
[1625480348864,2.20527,2288.0,2287.7,5.62777]
[1625480348967,2.20527,2288.0,2287.7,21.447023]
[1625480349166,1.28862958,2288.9,2287.7,21.447023]
[1625480349370,1.28861347,2289.0,2287.7,21.447023]
[1625480349566,1.0,2288.9,2287.7,21.447023]
[1625480350567,2.20527,2288.6,2288.5,2.20527]
[1625480350668,3.20527,2288.6,2288.5,5.25687]
[1625480351820,3.20527,2288.6,2288.5,3.0516]
[1625480352022,3.20527,2288.6,2288.3,2.20527]
[1625480352522,5.41054,2288.6,2288.3,4.41054]
[1625480357156,4.41054,2288.6,2288.3,4.41054]
[1625480357355,4.41054,2288.6,2288.3,6.81244]
[1625480357706,4.41054,2288.6,2288.4,15.993574]
[1625480359211,2.20527,2288.6,2288.4,15.993574]
[1625480359318,1.0,2288.9,2288.4,15.993574]
[1625480359418,1.28868701,2289.3,2288.4,15.993574]
[1625480359623,2.28871048,2289.4,2288.4,15.993574]
[1625480359920,2.28871048,2289.4,2288.6,48.0392]
[1625480360126,1.0,2289.4,2288.6,48.0392]
[1625480360328,1.0,2289.4,2288.7,15.878182]
[1625480360596,3.20527,2289.4,2289.3,4.41054]
[1625480366112,2.20527,2289.4,2289.3,4.41054]
[1625480366864,3.20527,2289.4,2289.3,4.41054]
[1625480368225,2.20527,2289.4,2289.3,4.41054]
[1625480368420,3.20527,2289.4,2289.3,4.41054]
[1625480378710,3.20527,2289.4,2288.6,48.0392]
[1625480378810,2.20527,2288.8,2288.6,50.24447]
[1625480380317,3.20527,2288.8,2288.6,50.24447]
[1625480381769,3.20527,2288.8,2288.7,15.972336]
[1625480383020,2.20527,2288.8,2288.7,15.972336]
[1625480383929,3.20527,2289.4,2288.7,15.972336]
[1625480384823,3.20527,2289.4,2289.2,2.20527]
[1625480384921,3.20527,2289.4,2289.2,5.57007]
[1625480386273,55.78937,2289.4,2289.2,5.57007]
[1625480386824,2.20527,2289.3,2289.2,5.57007]
[1625480394205,41.4257,2289.5,2289.2,3.3648]
[1625480394302,41.4257,2289.5,2289.0,50.7822]
[1625480394953,43.63097,2289.5,2289.4,2.20527]
[1625480395604,2.20527,2289.5,2289.4,2.20527]
[1625480396115,2.20527,2289.5,2289.4,45.73547]
[1625480396317,2.20527,2289.5,2289.4,61.642346]
[1625480397020,4.41054,2289.5,2289.4,61.642346]